Cogmind - Beta 14 @@@ ROGUE MODE // 2024.11.20 @ 20:13:31 Player: skye Result: Self-destructed Performance ------------- Evolutions (2) 1000 Regions Visited (5) 1000 Robots Destroyed (33) 165 Value Destroyed (565) 565 Prototype IDs (0) 0 Alien Tech Used (0) 0 Bonus (0) 0 TOTAL SCORE: 2730 Bonus ------- None Cogmind --------- Core Integrity 505/550 Matter 253/300 Energy 125/125 System Corruption 0% Temperature Cool (0) Movement Flying (195) Ox2 Location -8/Materials Parts ------- > --- POWER (2) -------- Light Ion Engine > --- PROPULSION (3) --- Cesium-ion Thruster > --- UTILITY (4) ------ Advanced Visual Processing Unit Makeshift Sensor Array > --- WEAPON (2) ------- Maul > --- INVENTORY (5) ---- Aluminum Leg EM Pulse Gun Light Assault Rifle Rocket Launcher Mini Grenade Launcher Peak State ------------ > --- POWER ------------ Light Ion Engine Light Ion Engine > --- PROPULSION ------- Cesium-ion Thruster > --- UTILITY ---------- Advanced Visual Processing Unit Makeshift Sensor Array > --- WEAPON ----------- Rocket Launcher Maul > --- INVENTORY -------- Aluminum Leg EM Pulse Gun Light Assault Rifle Mini Grenade Launcher [Rating: 19] Favorites ----------- Power Light Ion Engine Engine Light Ion Engine Propulsion Hover Unit Treads Light Treads Leg Aluminum Leg Hover Unit Hover Unit Flight Unit Cesium-ion Thruster Utility Visual Processing Unit Device Makeshift Sensor Array Storage Medium Storage Unit Processor Visual Processing Unit Weapon Maul Energy Gun EM Pulse Gun Ballistic Gun Light Assault Rifle Launcher Mini Grenade Launcher Impact Weapon Maul Build | -11 -10 -10 -10 -9 -8 ------- Run | Yrd Mat Min Exi Min Mat Slots Evolved 4 | . . . . . 4 Power 1 | . . . . . 1 Propulsion 1 | . . . . . 1 Utility 2 | . . . . . 2 Weapon . | . . . . . . Parts Attached 22 | 2 9 4 1 1 5 Power 5 | . 3 1 . . 1 Engine 5 | . 3 1 . . 1 Core . | . . . . . . Reactor . | . . . . . . Propulsion 5 | 2 . 2 . . 1 Treads 2 | 2 . . . . . Leg . | . . . . . . Wheel . | . . . . . . Hover 2 | . . 2 . . . Flight 1 | . . . . . 1 Utility 5 | . 2 . . . 3 Device 2 | . . . . . 2 Storage 1 | . 1 . . . . Processor 2 | . 1 . . . 1 Hackware . | . . . . . . Protection . | . . . . . . Artifact . | . . . . . . Weapon 7 | . 4 1 1 1 . Energy Gun . | . . . . . . Energy Cannon . | . . . . . . Ballistic Gun 2 | . 2 . . . . Ballistic Cannon . | . . . . . . Launcher 3 | . 1 1 . 1 . Special Weapon . | . . . . . . Impact Weapon 2 | . 1 . 1 . . Slashing Weapon . | . . . . . . Piercing Weapon . | . . . . . . Special Melee Weapon . | . . . . . . Unidentified Prototypes . | . . . . . . Parts Lost 8 | . 1 3 . . 4 Power 3 | . 1 1 . . 1 Propulsion 4 | . . 2 . . 2 Utility 1 | . . . . . 1 Weapon . | . . . . . . Highest Loss Streak 3 | . 1 1 . . 3 To Critical Strikes 1 | . . 1 . . . Average Slot Usage (%) 86 | . 88 81 93 100 56 Engine 13 | . 13 10 14 14 14 Treads 10 | . 28 10 . . . Hover 13 | . . 7 28 28 4 Storage 12 | . 14 14 14 14 3 Processor 9 | . 3 14 14 14 9 Energy Gun 2 | . 6 . . . . Ballistic Gun 7 | . 19 6 . . . Launcher 7 | . 1 7 14 14 4 Impact Weapon 6 | . . 10 8 14 9 Peak Build Rating 19 | 6 10 10 12 12 19 Average Rating 9 | 5 6 9 10 12 15 On Entrance 9 | 6 6 10 9 12 12 Naked Turns . | . . . . . . Heaviest Build 21 | 11 20 20 17 20 21 Greatest Support 40 | 40 40 20 12 12 12 Greatest Overweight (x) 6 | . . 1 1 1 6 Average Overweight (x) . | . . . 1 1 1 Largest Inventory Capacity 10 | 8 10 10 10 10 10 Average Capacity 9 | 8 8 10 10 10 6 Most Carried 10 | 8 9 10 10 10 10 Average Carried 8 | 6 7 9 9 10 6 Final Capacity 10 | 8 10 10 10 10 5 Final Carried 10 | 6 9 9 10 10 5 Class Distribution -------------------- 100% | Mutant Dominant Class ---------------- Mutant | -10/Materials Mutant | -10/Mines Mutant | -10/Exiles Mutant | -9/Mines Mutant | -8/Materials Resources | -11 -10 -10 -10 -9 -8 ----------- Run | Yrd Mat Min Exi Min Mat Matter Collected 593 | 200 190 101 12 74 16 Remotely . | . . . . . . Salvage Created 655 | . 353 162 12 21 107 Parts 50 | . 23 18 . 1 8 Haulers Intercepted . | . . . . . . Recyclers Shooed . | . . . . . . Parts Field Recycled . | . . . . . . Retrieved Matter . | . . . . . . Parts Self-Destructed . | . . . . . . Prevented . | . . . . . . Kills | -11 -10 -10 -10 -9 -8 ------- Run | Yrd Mat Min Exi Min Mat Combat Hostiles Destroyed 22 | . 8 10 . . 4 Melee 1 | . . 1 . . . Guns 8 | . 6 2 . . . AOE 12 | . 2 6 . . 4 Classes Destroyed 7 | . 5 1 . . 1 Builder 1 | . . . . . 1 Tunneler 4 | . . 3 . 1 . Recycler 2 | . 1 . . . 1 Operator 2 | . 2 . . . . Watcher 2 | . 2 . . . . Swarmer 13 | . 3 6 . . 4 Grunt 9 | . 5 4 . . . Best Kill Streak 7 | . 3 7 . 1 3 Combat Bots Only 4 | . 2 4 . . 3 Max Kills in Single Turn 3 | . 2 2 . 1 3 Gunslinging . | . . . . . . Exploded 2 | . 2 2 . . 2 Melee 1 | . . 1 . . . Uniques/NPCs Destroyed . | . . . . . . Combat | -11 -10 -10 -10 -9 -8 -------- Run | Yrd Mat Min Exi Min Mat Hostile Shots Fired 132 | . 64 36 . . 32 Missed 37 | . 21 7 . . 9 Damage Taken 1013 | . 449 307 . . 257 Core 247 | . 121 81 . . 45 Absorbed by Shields . | . . . . . . Core Remaining (%) 59 | 100 . . . 19 . Volleys Fired 68 | . 48 17 . . 3 Largest 2 | . 2 1 . . 1 Hottest 60 | . 60 30 . . 33 Shots Fired 86 | . 66 17 . . 3 Gun 75 | . 65 10 . . . Cannon . | . . . . . . Launcher 11 | . 1 7 . . 3 Special . | . . . . . . Kinetic 74 | . 64 10 . . . Thermal . | . . . . . . Explosive 11 | . 1 7 . . 3 Electromagnetic 1 | . 1 . . . . Robot Hit Streak 6 | . 6 4 . . 2 Robot Miss Streak 3 | . 3 2 . . . Penetration Max . | . . . . . . Secondary Targets 1 | . 1 . . . . Max Gunslinging Chain 1 | . 1 . . . . Shots Hit Robots 55 | . 40 11 1 1 2 Core Hits 48 | . 24 17 . . 7 Critical Kills . | . . . . . . Critical Parts Destroyed 1 | . . . . 1 . Critical Strikes 1 | . . . . 1 . Smash 1 | . . . . 1 . Melee Attacks 47 | . 1 19 7 1 19 Impact 47 | . 1 19 7 1 19 Slashing . | . . . . . . Piercing . | . . . . . . Sneak Attacks 2 | . . 1 . 1 . Combat Hostiles 1 | . . 1 . . . Follow-up Attacks . | . . . . . . Damage Inflicted 1809 | . 502 718 122 82 385 Guns 456 | . 399 57 . . . Cannons . | . . . . . . Explosions 1004 | . 103 546 . . 355 Melee 349 | . . 115 122 82 30 Ramming . | . . . . . . Kinetic 436 | . 379 57 . . . Thermal . | . . . . . . Explosive 1004 | . 103 546 . . 355 Electromagnetic 20 | . 20 . . . . Impact 349 | . . 115 122 82 30 Slashing . | . . . . . . Piercing . | . . . . . . Highest Corruption . | . . . . . . Average Corruption . | . . . . . . Corruption Purged . | . . . . . . Corruption Blocked . | . . . . . . Overload Shots . | . . . . . . Overflow Damage 172 | . . 35 38 82 17 Projectiles . | . . . . . . Explosions 41 | . . 24 . . 17 Melee 131 | . . 11 38 82 . Knockbacks . | . . . . . . Impact . | . . . . . . Kinetic . | . . . . . . Secondary . | . . . . . . Self-Inflicted Damage 121 | . . 38 . . 83 Shots 3 | . . 1 . . 2 Rammed . | . . . . . . Targets Rammed . | . . . . . . Kicked . | . . . . . . Crushed . | . . . . . . Highest Temperature 20 | . 20 2 . . . Average Temperature 7 | . 8 1 . . . Received Heat Transfer 210 | . 132 78 . . . Siege Activations . | . . . . . . Robots Corrupted 1 | . . 1 . . . Combat Hostiles 1 | . . 1 . . . Parts Fried 2 | . 1 . . 1 . Impact Corruptions 3 | . . 1 1 1 . Robots Melted . | . . . . . . Combat Hostiles . | . . . . . . Parts Melted . | . . . . . . Heat Transferred . | . . . . . . Parts Sabotaged . | . . . . . . Parts Stolen . | . . . . . . Parts Stripped . | . . . . . . Power Chain Reactions . | . . . . . . Alert | -11 -10 -10 -10 -9 -8 ------- Run | Yrd Mat Min Exi Min Mat Peak Influence 350 | . 227 350 . 20 134 Initial 73 | . . 73 . . 7 Average 106 | . 97 209 . 2 98 Maximum Alert Level 1 | . 1 1 . . . Low Security (%) 80 | 100 80 51 . 100 100 Level 1 19 | . 19 48 . . . Level 2 . | . . . . . . Level 3 . | . . . . . . Level 4 . | . . . . . . Level 5 . | . . . . . . High Security . | . . . . . . Max Security . | . . . . . . Squads Dispatched 4 | . 3 . . . 1 Investigation . | . . . . . . Extermination . | . . . . . . Reinforcement 4 | . 3 . . . 1 Assault . | . . . . . . Garrison . | . . . . . . Intercept . | . . . . . . Searches Triggered . | . . . . . . Construction Impeded 1 | . . . . . 1 Haulers Reinforced . | . . . . . . Active Scanning Responses . | . . . . . . Cargo Convoy Interrupts . | . . . . . . Stealth | -11 -10 -10 -10 -9 -8 --------- Run | Yrd Mat Min Exi Min Mat Distress Signals 3 | . 2 1 . . . Communications Jammed . | . . . . . . Distress Signals . | . . . . . . Times Spotted 52 | . 28 9 . 2 13 Peak Tracking Total 8 | . 4 3 . 2 8 Tactical Retreats 2 | . 2 . . . . Traps | -11 -10 -10 -10 -9 -8 ------- Run | Yrd Mat Min Exi Min Mat Traps Triggered 1 | . 1 . . . . Indirectly . | . . . . . . Trap Hack Attempts . | . . . . . . Triggered . | . . . . . . Disarmed . | . . . . . . Reprogrammed . | . . . . . . Reused . | . . . . . . Traps Extracted . | . . . . . . Installed . | . . . . . . Triggered . | . . . . . . Machines | -11 -10 -10 -10 -9 -8 ---------- Run | Yrd Mat Min Exi Min Mat Machines Disabled 2 | . . 2 . . . Max in Single Turn 1 | . . 1 . . . Machines Repaired . | . . . . . . Machines Dismantled . | . . . . . . Machines Sabotaged . | . . . . . . Overloaded Fab Kills . | . . . . . . Hacking | -11 -10 -10 -10 -9 -8 --------- Run | Yrd Mat Min Exi Min Mat Machines Accessed 7 | . 4 . 2 . 1 Terminals 3 | . 3 . . . . Fabricators . | . . . . . . Repair Stations . | . . . . . . Recycling Units 2 | . 1 . . . 1 Scanalyzers . | . . . . . . Garrison Access . | . . . . . . Total Hacks 30 | . 9 . 20 . 1 Successful 26 | . 5 . 20 . 1 Failed 4 | . 4 . . . . Catastrophic 2 | . 2 . . . . Database Lockouts . | . . . . . . Manual 10 | . 8 . 2 . . Terminals 8 | . 8 . . . . Fabricators . | . . . . . . Repair Stations . | . . . . . . Recycling Units 2 | . 1 . . . 1 Scanalyzers . | . . . . . . Garrison Access . | . . . . . . Terminal Hacks 21 | . 1 . 20 . . Record 20 | . . . 20 . . Hauler Manifests 1 | . 1 . . . . Fabricator Hacks . | . . . . . . Repair Station Hacks . | . . . . . . Recycling Unit Hacks 2 | . 1 . . . 1 Report Inventory 2 | . 1 . . . 1 Scanalyzer . | . . . . . . Garrison Access Hacks . | . . . . . . Unauthorized Hacks 3 | . 3 . . . . Terminals 3 | . 3 . . . . Botnet 3 | . 3 . . . . Fabricators . | . . . . . . Repair Stations . | . . . . . . Recycling Units . | . . . . . . Scanalyzers . | . . . . . . Garrison Access . | . . . . . . Data Cores Recovered . | . . . . . . Used . | . . . . . . Hacking Detections 3 | . 3 . . . . Full Trace Events . | . . . . . . Feedback Events . | . . . . . . Feedback Blocked . | . . . . . . Robot Schematics Acquired . | . . . . . . Robots Built . | . . . . . . Authchips . | . . . . . . Time . | . . . . . . Total Robot Build Rating . | . . . . . . Part Schematics Acquired . | . . . . . . Parts Built . | . . . . . . Authchips . | . . . . . . Time . | . . . . . . Total Part Build Rating . | . . . . . . Parts Repaired . | . . . . . . Time . | . . . . . . Parts Recycled . | . . . . . . Recycled Matter . | . . . . . . Retrieved Matter . | . . . . . . Retrieved Components . | . . . . . . Parts Scanalyzed . | . . . . . . Part Schematics Acquired . | . . . . . . Parts Damaged . | . . . . . . Bothacking | -11 -10 -10 -10 -9 -8 ------------ Run | Yrd Mat Min Exi Min Mat Used RIF Installer . | . . . . . . Robots Hacked . | . . . . . . Non-combat . | . . . . . . Combat . | . . . . . . Robot Hacks Applied . | . . . . . . Relay Couplers Released . | . . . . . . Fabnet Peak Effective % . | . . . . . . Robots Rewired . | . . . . . . Allies Hacked . | . . . . . . Hacks Repelled . | . . . . . . Allies | -11 -10 -10 -10 -9 -8 -------- Run | Yrd Mat Min Exi Min Mat Total Allies 3 | . . . . 3 . Largest Group 3 | . . . . 3 . Highest-Rated Group 40 | . . . . 40 . Highest-Rated Ally 16 | . . . . 16 . Total Orders . | . . . . . . Ally Attacks 6 | . . . . 6 . Total Damage 43 | . . . . 43 . Kills . | . . . . . . Allies Corrupted . | . . . . . . Allies Melted . | . . . . . . Intel | -11 -10 -10 -10 -9 -8 ------- Run | Yrd Mat Min Exi Min Mat Robot Analysis Total . | . . . . . . Derelict Logs Recovered 2 | . . 1 . 1 . Drone Launches . | . . . . . . Drone Recoveries . | . . . . . . Exploration | -11 -10 -10 -10 -9 -8 ------------- Run | Yrd Mat Min Exi Min Mat Turns Passed 3210 | 6 1058 415 1057 293 381 Spaces Moved 2042 | 3 578 225 884 220 132 Core 10 | . . . . . 10 Treads 714 | 1 578 135 . . . Legs 2 | 2 . . . . . Wheels . | . . . . . . Hover 1255 | . . 90 884 220 61 Flight 61 | . . . . . 61 Fastest Speed 56 | 120 160 56 116 116 115 Average Speed 135 | 133 160 138 116 116 179 Slowest Speed 350 | 160 160 160 116 116 350 Overloaded Moves . | . . . . . . Propulsion Burnouts . | . . . . . . Robots Hopped . | . . . . . . Cave-ins Triggered . | . . . . . . Exploration Rate (%) 42 | 2 58 42 93 50 9 Regions Visited 5 Branch Regions 3 Pre-discovered Areas 2 | . . . 1 1 . Known Exits Taken . | . . . . . . Unknown Exits Taken 5 | 1 1 1 1 1 . Scrap Searched 2 | . . 1 . 1 . Spaces Dug 22 | . 1 5 1 . 15 Terrain Destroyed 117 | . 6 70 1 . 40 Melee 22 | . 1 5 1 . 15 Projectile . | . . . . . . AOE 95 | . 5 65 . . 25 Terrain Rammed . | . . . . . . Walls Destroyed . | . . . . . . Machines Disabled . | . . . . . . Actions | -11 -10 -10 -10 -9 -8 --------- Run | Yrd Mat Min Exi Min Mat Total 2327 | 6 653 274 901 257 236 Wait 112 | . 1 5 . 34 72 Move 2037 | 2 577 224 883 219 132 Hop . | . . . . . . Pick Up 16 | . 9 3 2 1 1 Fast Attach 5 | . 2 . . . 3 Attach 9 | 2 1 3 1 . 2 Detach 5 | 2 . 1 . . 2 Swap 8 | . 6 1 . 1 . Drop 12 | . 8 1 . 1 2 Fire 68 | . 48 17 . . 3 Melee 47 | . 1 19 7 1 19 Ram . | . . . . . . Kick . | . . . . . . Crush . | . . . . . . Escape Stasis . | . . . . . . Rewire 8 | . . . 8 . . Trap . | . . . . . . Miscellaneous . | . . . . . . Route ------- -11/Scrapyard -10/Materials (discovered 5 exits: [*Mat x2] / [*Min x2] / [*Sub]) -10/Mines -10/Exiles (discovered 2 exits: [*Min x2]) -9/Mines (discovered 2 exits: *Mat x2) -8/Materials History --------- Turn | Location | Event 1 | -11/Scrapyard | Discovered new exit (range 3) 7 | -11/Scrapyard | Entered Materials 298 | -10/Materials | Discovered new exit (range 9) 308 | -10/Materials | Build established: Mutant 368 | -10/Materials | Discovered new exit (range 14) 844 | -10/Materials | Discovered new exit (range 12) 974 | -10/Materials | Discovered new exit (range 5) 998 | -10/Materials | Discovered new exit (range 14) 1065 | -10/Materials | Entered Mines 1068 | -10/Mines | Core integrity fell below 50% 1166 | -10/Mines | Excavation squad dispatched 1166 | -10/Mines | A large section of the Mines collapsed 1367 | -10/Mines | Learned Materials trap positions 1383 | -10/Mines | Core integrity fell below 20% 1416 | -10/Mines | Excavation squad dispatched 1474 | -10/Mines | Deemed a non-threat by the Exiles lab entrance 1475 | -10/Mines | Discovered new exit (range 5) 1480 | -10/Mines | Entered Exiles 1480 | -10/Exiles | Found Exiles lab destroyed 1496 | -10/Exiles | Discovered new exit (range 17) 1788 | -10/Exiles | Learned location of Zion (-7) 2522 | -10/Exiles | Discovered new exit (range 15) 2537 | -10/Exiles | Entered Mines 2544 | -9/Mines | Received a Rocket Launcher from a helpful Derelict 2580 | -9/Mines | Discovered new exit (range 17) 2585 | -9/Mines | Assisted by bots powering up and referring to "LRC-V3" 2623 | -9/Mines | Learned location of Storage (-9) 2796 | -9/Mines | Discovered new exit (range 7) 2797 | -9/Mines | Learned Materials security intel 2830 | -9/Mines | Entered Materials 2830 | -8/Materials | Evolved 4 slots: Power x1, Propulsion x1, Utility x2 2831 | -8/Materials | Loaded intel: 16 trap records 2954 | -8/Materials | Lost 3 parts (2n1u) 3211 | -8/Materials | Self-destructed Last Messages --------------- Dropped Med. Storage Unit. Acquired Lgt. Ion Engine. R-06 Scavenger collects Lgt. Ion Engine. Dropped Assault Rifle. Acquired Lgt. Assault Rifle. R-06 Scavenger collects Autogun. R-06 Scavenger collects Assault Rifle. U-05 Engineer lays Concrete. U-05 Engineer builds a Wall. U-05 Engineer lays Concrete. U-05 Engineer builds a Wall. U-05 Engineer lays Concrete. U-05 Engineer builds a Wall. [Achievement: Part-time Excavator] U-05 Engineer builds a Wall. Acquired 16 matter. K-01 Serf collects debris. K-01 Serf cleans the Fusion Modulator. K-01 Serf collects debris. Lgt. Ion Engine destroyed. Map ----- +----------------------------------------------------+ | ???????????^^??????? ????????????????????????? | | ???????????^^??????? ????????????????????????? | | ???????????????????? ????????????????????????? | | ???????????????????? ????????????????????????? | | ???????????????????? ????????????????????????? | | ????????????????????# #????????????????????????? | | ????????????????????# #????????????????????????? | | ????????????????????# #????????????????????????? | | ????????????????????+ +????????????????????????? | | ????????????????????# #???????????????????????^^ | | ????????????????????? #???????????????????????^^ | | ????????????????????? #????????????????????????? | | ?????????????????#####+#####?????????????????????? | | ?????????????????# #?????????????????????? | | ?????????????????# #?????????????????????? | | ?????????????????# #?????????????????????? | | ?????????????????# """ """ #?????????????????????? | | ?????????????????# """ """ #?????????????????????? | | ?????????????????# """ """ #????????#????????????? | | ?????????????????# ###????? #????????????? | | ?????????????????#! [ [ # ##??? #????????????? | | ??????????????##################? g#????????????? | | ??????????????# # % * ### ##########???? | | ??????????????# # ! ss s ??? | | ??????????????# + ss ??? | | ??????????????# """ """ #@ srs ??? | | ??????????????# """ """ # ##########+###?????? | | ??????????????? """ """ ## ###?????????????????? | | ????????????????""" """ ## ##??????????????????? | | ??????????????# # ##??????????????????? | | ??????????????????######## ##??????????????????? | | ????????????????????????## ##??????????????????? | | ??????????????????????#### ###########?????????? | | ?????????????????????##! # #?????????? | | ?????????????????????#! # !!!#?????????? | | ?????????????????????#! # !!#?????????? | | ?????????????????????#! # !!!#?????????? | | ?????????????????????#! + """ #?????????? | | ?????????????????????##! # """ #?????????? | | ??????????????????????#### # """ "Y" #?????????? | | ?????????????????????????# # """ #?????????? | | ?????????????????????????# ###########?????????? | | ?????????????????????????# #???????????????????? | | ?????????????????????????# #???????????????????? | | ?????????????????????????# #???????????????????? | | ?????????????????????????# #???????????????????? | | ?????????????????????????# #???????????????????? | | ?????????????????????????# #???????????????????? | | ????^????????????????????#####???????????????????? | | ?????????????????????????????????????????????????? | +----------------------------------------------------+ Best States ------------- Heat Dissipation 31 Energy Generation 15 Energy Capacity 250 Matter Stores 300 Matter Capacity 300 Sight Range 20 Robot Scan Range 19 Terrain Scan Density 10 Cloak Strength 3 Evasion (%) 53 Recoil Reduction 2 Item Schematics ----------------- None Robot Schematics ------------------ None Fabricated ------------ Nothing Alien Tech Used ----------------- None Achievements -------------- Part-time Excavator Challenges ------------ None Game ------ Seed PotentialFlyingBallwheel Manual? 0 Play Time 00:21:33 Cumulative 48.7 hours Start 2024.11.20 @ 19:54:19 End 2024.11.20 @ 20:13:31 Sessions 1 Manual Loads 0 Difficulty Rogue Special Mode None Game No. 58 Rogue 14 Adventurer 44 Explorer 0 Win Type - Total 0 Types 0/0/0/0/0/0/0/0/0 Lore% 18 Gallery% 42 Achievement% 30 Wizard Run 0 Options --------- Layout 1 ASCII 0 Keyboard 1 Movement Vi Keybinds 0 Fullscreen 1 Font 24/Terminus Map View 50x40 Zoom Use 0% Tactical HUD 0 Map Filters NONE Filters NONE Steam 1 RUN: f3576f2b-c947-4771-a762-0b9943ab0168